bitfinex-derivatives/quotes_ETHF0:USTF0_20250214
["timestamp","ask_amount","ask_price","bid_price","bid_amount"]
[1739521925382,41.4118,2711.9,2711.8,0.741084]
[1739521925782,42.14917,2711.9,2711.8,0.003684]
[1739521927077,41.4118,2711.9,2711.8,0.003684]
[1739521927482,42.14917,2711.9,2711.8,0.003684]
[1739521928576,41.4118,2711.9,2711.8,0.741084]
[1739521928875,41.4118,2711.9,2711.8,0.003684]
[1739521929080,41.4118,2711.9,2711.8,0.741084]
[1739521930087,41.4118,2711.9,2711.8,0.003684]
[1739521930289,41.4118,2711.9,2711.8,0.741084]
[1739521930492,41.4118,2711.9,2711.8,3.948884]
[1739521930889,40.8,2711.9,2711.8,3.948884]
[1739521931992,40.8,2711.9,2711.8,6.19424264]
[1739521933384,0.00552598,2712.6,2712.5,0.73721]
[1739521934396,40.80552598,2712.6,2712.5,0.73721]
[1739521935891,40.80552598,2712.6,2712.4,5.0558]
[1739521936196,41.38702598,2712.6,2712.4,5.0558]
[1739521936399,42.12421598,2712.6,2712.4,5.17872]
[1739521936784,41.38702598,2712.6,2712.5,0.73721]
[1739521937391,40.80552598,2712.6,2712.5,0.73721]
[1739521937600,40.80552598,2712.6,2712.5,1.34131]
[1739521938005,41.54270598,2712.6,2712.5,0.6041]
[1739521938194,40.80552598,2712.6,2712.5,1.34131]
[1739521939093,40.80552598,2712.6,2712.4,3.94503]
[1739521939300,40.80552598,2712.6,2712.4,3.2078]
[1739521939598,0.00552598,2712.6,2712.5,0.73721]
[1739521939799,0.74272598,2712.6,2712.4,3.94502]
[1739521940092,40.8,2712.5,2712.4,3.2078]
[1739521940292,41.4191,2712.5,2712.4,3.2078]
[1739521940697,42.0164,2712.5,2712.4,3.94504]
[1739521940891,42.0164,2712.5,2712.4,3.2078]
[1739521941087,45.3529,2712.5,2711.8,3.211484]
[1739521941293,0.73725,2712.4,2712.2,0.73729]
[1739521941597,42.88233,2712.5,2712.2,0.73729]
[1739521941894,42.0164,2712.5,2712.1,3.2078]
[1739521942199,41.4191,2712.5,2712.4,0.73724]
[1739521942705,40.8,2712.5,2712.4,0.73724]
[1739521946401,40.8,2712.5,2712.3,2.82195864]
[1739521946597,0.00552598,2712.6,2712.3,0.5766]
[1739521946903,0.73722,2712.5,2712.3,0.73726]
[1739521947096,40.8,2712.4,2712.3,0.73725]
[1739521947900,40.8,2712.4,2712.0,0.73734]
[1739521948094,0.7373,2712.2,2712.0,0.73734]
[1739521948300,0.7373,2712.2,2711.9,1.1965]
[1739521948301,40.8,2712.4,2711.9,1.1965]
[1739521948496,0.73727,2712.3,2712.1,0.7373]
[1739521948694,0.73732,2712.1,2711.9,1.93386]
[1739521948894,0.5743,2712.2,2711.9,0.605]
[1739521949091,1.30665,2712.0,2711.8,3.948874]
[1739521949296,40.8,2711.9,2711.8,3.948874]
[1739521950194,40.8,2711.9,2711.8,3.211484]
[1739521951102,40.8,2711.9,2711.8,3.948884]
[1739521952600,40.8,2711.9,2711.8,5.769784]
[1739521961003,0.00552598,2712.6,2712.5,0.73721]
[1739521961708,0.00552598,2712.6,2712.5,1.34181]
[1739521961902,40.80552598,2712.6,2712.5,1.34181]
[1739521966211,41.54270598,2712.6,2712.5,1.34181]
[1739521966709,40.80552598,2712.6,2712.5,0.73721]
[1739521969811,41.54270598,2712.6,2712.5,0.73721]
[1739521970215,40.80552598,2712.6,2712.5,0.73721]
[1739521971716,41.54270598,2712.6,2712.5,0.73721]
[1739521972019,40.80552598,2712.6,2712.5,0.73721]
[1739521974015,40.80552598,2712.6,2712.5,1.35431]
[1739521974419,41.54270598,2712.6,2712.5,1.35431]
[1739521974611,41.54270598,2712.6,2712.5,0.73721]
[1739521975017,40.80552598,2712.6,2712.5,0.73721]
[1739521978719,41.54270598,2712.6,2712.5,0.73721]
[1739521978919,40.80552598,2712.6,2712.5,0.73721]
[1739521980820,40.80552598,2712.6,2712.4,3.2078]
[1739521981022,0.73721,2712.5,2712.4,3.2078]
[1739521981215,1.2708,2712.5,2712.1,3.8213]
[1739521981420,1.2708,2712.5,2711.8,5.18504264]
[1739521981421,0.73736,2712.0,2711.8,3.211484]
[1739521981622,0.73736,2712.0,2711.9,0.73737]
[1739521981926,0.73737,2711.9,2711.8,3.948884]
[1739521982124,0.73737,2711.9,2711.8,3.211484]
[1739521982326,40.8,2711.9,2711.8,3.948884]
[1739521982728,40.8,2711.9,2711.8,6.19424264]
[1739521987430,0.00552598,2712.6,2712.5,0.73721]
[1739521987726,0.00552598,2712.6,2712.3,5.45315864]
[1739521988126,0.00552598,2712.6,2712.5,0.73721]
[1739521988328,3.2078,2713.4,2712.5,4.834]
[1739521988627,3.8133,2713.4,2712.9,3.2078]
[1739521988831,0.73708,2713.0,2712.9,3.2078]
[1739521989432,40.8,2713.0,2712.9,3.2078]
[1739521989623,41.53708,2713.0,2712.9,3.2078]
[1739521989824,40.8,2713.0,2712.9,3.2078]
[1739521990034,41.53708,2713.0,2712.9,3.2078]
[1739521990432,40.8,2713.0,2712.9,3.2078]
[1739521990931,40.8,2713.0,2712.9,3.9449]
[1739521991229,40.8,2713.0,2712.9,9.9449]
[1739521991733,40.8,2713.0,2712.9,3.9449]
[1739521991928,40.8,2713.0,2712.9,4.5862]
[1739521993527,40.8,2713.0,2712.9,3.8491]
[1739521993829,40.8,2713.0,2712.7,2.24535864]
[1739521994225,40.8,2713.0,2712.6,4.5149]
[1739521994430,0.00552598,2713.2,2712.9,3.2078]
[1739521994636,0.00552598,2713.2,2713.0,2.24535864]
[1739521994827,40.8,2713.1,2713.0,2.98241864]
[1739521998333,40.8,2713.1,2712.9,3.2078]
[1739521998532,42.14605,2713.1,2712.9,3.2078]
[1739521998735,42.0583,2713.1,2712.9,3.2078]
[1739521998937,0.73708,2713.0,2712.9,3.2078]
[1739521999642,41.53708,2713.0,2712.9,3.2078]
[1739522001931,0.73717,2712.7,2712.5,3.945]
[1739522002430,0.73718,2712.6,2712.5,3.2078]
[1739522002630,6.30879,2713.1,2712.4,2.24535864]
[1739522002843,0.7372,2712.6,2712.4,2.24535864]
[1739522003039,40.8,2712.5,2712.4,2.24535864]
[1739522003431,41.53721,2712.5,2712.3,0.73725]
[1739522003636,41.53723,2712.5,2712.3,0.73725]
[1739522003842,40.8,2712.5,2712.2,3.2078]
[1739522004037,40.8,2712.5,2712.3,0.73727]
[1739522004244,41.53721,2712.5,2712.3,0.73727]
[1739522004436,40.8,2712.5,2712.4,0.73724]
[1739522005037,40.8,2712.5,2712.4,2.98259864]
[1739522006546,40.8,2712.5,2712.2,3.2078]
[1739522006842,42.85993,2712.5,2712.2,3.2078]
[1739522007142,42.1227,2712.5,2712.3,0.73727]
[1739522007641,42.1227,2712.5,2712.4,0.73724]
[1739522007846,41.4579,2712.5,2712.4,0.73724]
[1739522008745,40.8,2712.5,2712.4,0.73724]
[1739522012343,41.53721,2712.5,2712.4,0.73724]
[1739522012539,42.14301,2712.5,2712.4,0.73724]
[1739522012734,41.4058,2712.5,2712.4,0.73724]
[1739522013140,42.14301,2712.5,2712.4,0.73724]
[1739522013341,41.4058,2712.5,2712.4,0.73724]
[1739522014545,42.14301,2712.5,2712.4,0.73724]
[1739522014853,41.4058,2712.5,2712.2,3.2078]
[1739522015345,0.73727,2712.3,2712.2,3.94508]
[1739522015650,41.53727,2712.3,2712.2,3.94508]
[1739522016046,40.8,2712.3,2712.2,3.94508]
[1739522016249,41.53727,2712.3,2712.2,3.94508]
[1739522016741,41.53727,2712.3,2712.2,3.2078]
[1739522017144,41.53727,2712.3,2712.2,3.20173734]
[1739522017448,41.53727,2712.3,2712.2,3.93902734]
[1739522017641,40.8,2712.3,2712.2,3.93902734]
[1739522017840,41.53727,2712.3,2712.2,3.93902734]
[1739522018444,41.53727,2712.3,2712.2,3.20173734]
[1739522018953,40.8,2712.3,2712.2,3.20173734]
[1739522019151,41.53727,2712.3,2712.2,3.93902734]
[1739522021253,40.8,2712.3,2712.2,3.93902734]
[1739522021648,40.8,2712.3,2712.2,3.20173734]
[1739522021944,41.53727,2712.3,2712.0,0.73733]
[1739522022144,0.73732,2712.1,2712.0,0.73733]
[1739522022651,0.73735,2712.0,2711.9,0.00235662]
[1739522022950,0.73734,2712.1,2712.0,0.73734]
[1739522023147,0.73734,2712.1,2712.0,0.73733]
[1739522023343,0.73734,2712.1,2711.9,0.00235662]
[1739522023344,0.73735,2712.0,2711.9,0.00235662]
[1739522023543,1.35455,2712.0,2711.9,0.00235662]
[1739522023749,1.35455,2712.0,2711.9,0.73972662]
[1739522023950,0.6172,2712.0,2711.9,0.73972662]
[1739522024148,41.4172,2712.0,2711.9,0.73972662]
[1739522026350,42.15455,2712.0,2711.9,0.73972662]
[1739522027257,41.4172,2712.0,2711.9,0.73972662]
[1739522027846,40.8,2712.0,2711.9,0.73972662]
[1739522028656,41.53735,2712.0,2711.9,0.00235662]
[1739522028849,41.82540178,2712.0,2711.9,0.00235662]
[1739522029356,41.53735,2712.0,2711.9,0.00235662]
[1739522040560,41.53735,2712.0,2711.9,0.73972662]
[1739522040760,41.53735,2712.0,2711.9,0.66415662]
[1739522041253,40.8,2712.0,2711.9,0.66415662]
[1739522041555,40.8,2712.0,2711.9,1.40152662]
[1739522051760,41.53735,2712.0,2711.9,0.66415662]
[1739522051953,41.53735,2712.0,2711.9,0.00235662]
[1739522053467,40.8,2712.0,2711.9,0.73972662]
[1739522053768,41.53735,2712.0,2711.9,0.73972662]
[1739522053962,41.53735,2712.0,2711.9,0.00235662]
[1739522059270,43.78270864,2712.0,2711.9,0.00235662]
[1739522060768,49.78270864,2712.0,2711.9,0.00235662]
[1739522060976,49.78270864,2712.0,2711.8,0.003684]
[1739522060977,0.73737,2711.9,2711.8,0.003684]
[1739522061869,41.53737,2711.9,2711.8,0.003684]
[1739522075170,7.37731,2711.6,2710.1,3.2078]
[1739522075375,3.2078,2710.8,2709.8,5.3295]
[1739522075767,0.7378,2710.4,2709.9,0.7379]
[1739522075982,0.73781,2710.4,2709.9,0.7379]
[1739522076175,0.73779,2710.4,2709.8,5.3295]
[1739522076471,0.00552598,2710.4,2709.9,0.00552598]
[1739522076775,40.8,2710.0,2709.9,0.74343598]
[1739522077074,40.8,2710.0,2709.9,0.00552598]
[1739522077673,41.53789,2710.0,2709.9,5.98e-06]
[1739522078775,43.78324864,2710.0,2709.9,5.98e-06]
[1739522081776,49.78324864,2710.0,2709.9,5.98e-06]
[1739522082868,49.04535864,2710.0,2709.1,0.6642]
[1739522083094,2.98346864,2709.2,2709.1,0.6642]
[1739522083601,43.78346864,2709.2,2709.1,0.6642]
[1739522084089,0.73823,2708.8,2708.4,0.73831]
[1739522084290,0.73823,2708.8,2708.5,2.7508]
[1739522084493,2.24535864,2708.9,2708.5,2.7508]
[1739522084693,0.73823,2708.8,2708.5,2.7508]
[1739522085001,2.98910543,2708.9,2708.5,2.0125]
[1739522085286,2.25089543,2708.9,2708.6,0.73826]
[1739522085676,2.98909543,2708.9,2708.6,0.73826]
[1739522086083,2.25089543,2708.9,2708.6,0.73825]
[1739522086284,2.25089543,2708.9,2708.5,2.0125]
[1739522086582,0.00553679,2708.9,2708.7,0.73823]
[1739522087083,0.00553679,2708.9,2708.8,0.73822]
[1739522087478,0.675,2709.9,2708.6,3.2078]
[1739522087479,3.2078,2709.7,2708.6,10.28715864]
[1739522087681,0.73784,2710.2,2709.4,3.2078]
[1739522087877,3.2078,2710.3,2708.4,3.69155]
[1739522087878,0.73788,2710.1,2709.7,3.94576]
[1739522088075,3.2078,2709.9,2709.5,1.4206]
[1739522088275,41.538,2709.6,2709.5,1.4206]
[1739522088581,41.538,2709.6,2708.7,4.834]
[1739522088582,44.0078,2709.6,2708.7,4.834]
[1739522088881,0.73815,2709.1,2708.8,1.4279]
[1739522089083,3.2078,2709.3,2708.9,0.00553679]
[1739522089380,3.9459,2709.3,2708.9,0.74371679]
[1739522089575,3.2078,2709.3,2708.9,0.00553679]
[1739522089784,0.73811,2709.2,2708.9,0.00553679]
[1739522090482,0.73811,2709.2,2708.9,0.74372679]
[1739522090670,0.73811,2709.2,2708.9,0.74073679]
[1739522090671,0.73813,2709.2,2708.9,0.74073679]
[1739522090875,3.2078,2709.3,2709.0,0.73815]
[1739522091082,3.94589,2709.3,2708.9,1.47891679]
[1739522091383,40.8,2709.6,2709.0,3.2078]
[1739522091579,40.8,2709.6,2709.5,0.73803]
[1739522091979,40.8,2709.6,2709.5,2.98338864]
[1739522092182,40.8,2709.6,2709.5,8.98338864]
[1739522092387,3.2078,2710.2,2709.7,0.73797]
[1739522092581,3.2078,2710.2,2709.7,3.2078]
[1739522092884,3.94565,2710.2,2710.0,0.73789]
[1739522093083,0.73788,2710.1,2709.8,0.73793]
[1739522093284,40.8,2709.9,2709.7,3.2078]
[1739522093480,41.53792,2709.9,2709.7,3.2078]
[1739522093686,41.53792,2709.9,2709.7,3.94577]
[1739522093687,40.8,2709.9,2709.7,3.94577]
[1739522094186,40.8,2709.9,2709.8,0.73795]
[1739522094686,40.8,2709.9,2709.7,3.94576]
[1739522095283,40.8,2709.9,2709.5,0.714]
[1739522095490,0.738,2709.6,2709.5,0.714]
[1739522096093,0.73803,2709.5,2709.4,0.6919]
[1739522096391,3.2078,2709.6,2709.1,0.7398]
[1739522096581,0.73811,2709.2,2709.1,0.7398]
[1739522096779,41.53811,2709.2,2709.1,0.7398]
[1739522098695,40.8,2709.2,2709.1,0.7398]
[1739522099487,41.53811,2709.2,2709.1,0.7398]
[1739522100087,40.8,2709.2,2709.1,0.7398]
[1739522100897,41.53811,2709.2,2709.1,0.7398]
[1739522101396,0.73814,2709.1,2709.0,1.402]
[1739522101693,0.73814,2709.1,2709.0,0.7285]
[1739522101891,0.73816,2709.0,2708.9,0.00553679]
[1739522102091,3.94578,2709.7,2709.4,0.73804]
[1739522102286,40.8,2709.5,2709.2,3.2078]
[1739522102483,40.8,2709.5,2709.3,2.1012]
[1739522102686,40.8,2709.5,2709.4,0.73805]
[1739522102887,40.8,2709.5,2709.3,2.1012]
[1739522103494,0.73805,2709.4,2709.3,2.1012]
[1739522103896,3.2078,2709.7,2709.3,2.1012]
[1739522104096,40.8,2709.4,2709.3,2.1012]
[1739522104395,40.8,2709.4,2709.3,2.83928]
[1739522109402,40.8,2709.4,2709.3,8.83928]
[1739522109801,40.8,2709.4,2709.3,9.39838411]
[1739522110003,39.99214,2709.4,2709.3,9.39838411]
[1739522110198,0.00553679,2710.1,2710.0,0.73789]
[1739522110396,0.00553679,2710.1,2710.0,3.94569]
[1739522111099,40.80553679,2710.1,2710.0,3.94569]
[1739522111410,40.80553679,2710.1,2710.0,9.94569]
[1739522112902,40.80553679,2710.1,2710.0,3.94569]
[1739522113106,40.80553679,2710.1,2709.4,8.0418]
[1739522113310,1.44453,2710.0,2709.7,3.2078]
[1739522113508,40.80553679,2710.1,2709.8,1.479]
[1739522113693,41.54332679,2710.1,2710.0,3.2078]
[1739522114099,0.73785,2709.9,2709.8,1.479]
[1739522114407,0.73785,2709.9,2709.8,0.7401]
[1739522114609,0.7379,2709.7,2709.6,4.834]
[1739522114902,41.5379,2709.7,2709.6,4.834]
[1739522115100,40.8,2709.7,2709.6,8.0418]
[1739522115295,40.8,2709.7,2709.6,8.77973]
[1739522115495,40.8,2709.7,2709.6,8.0418]
[1739522115700,40.8,2709.7,2709.6,8.77973]
[1739522116905,40.8,2709.7,2709.6,9.94573]
[1739522117108,40.8,2709.7,2709.6,16.20093]
[1739522117501,40.8,2709.7,2709.6,16.75915991]
[1739522119103,40.8,2709.7,2709.6,19.69515991]
[1739522119399,40.8,2709.7,2709.6,19.13693]
[1739522120501,40.8,2709.7,2709.6,13.13693]
[1739522120907,40.8,2709.7,2709.6,19.13693]
[1739522121602,0.00553679,2710.1,2710.0,0.73782]
[1739522121808,0.00553679,2710.1,2710.0,6.19097864]
[1739522122009,0.00553679,2710.1,2710.0,12.19097864]
[1739522122494,40.80553679,2710.1,2710.0,12.19097864]
[1739522122698,40.8,2710.1,2710.0,12.19097864]
[1739522122898,0.73746,2711.4,2711.2,0.73749]
[1739522123099,3.2078,2711.5,2711.1,3.94531]
[1739522123298,0.73748,2711.3,2711.1,3.94531]
[1739522123714,3.2078,2711.5,2711.1,3.2078]
[1739522124011,40.8,2711.2,2711.1,3.2078]
[1739522124201,41.53749,2711.2,2711.1,3.2078]
[1739522124810,40.8,2711.2,2711.1,8.77932]
[1739522126913,40.8,2711.2,2711.1,3.2078]
[1739522127211,40.8,2711.2,2710.9,0.00553679]
[1739522127415,40.8,2711.2,2711.0,3.2078]
[1739522127610,41.53751,2711.2,2711.0,3.2078]
[1739522128002,0.73752,2711.1,2711.0,3.2078]
[1739522128716,40.8,2711.1,2711.0,3.2078]
[1739522129015,40.8,2711.1,2711.0,3.94535]
[1739522130202,40.8,2711.1,2711.0,3.2078]
[1739522130906,40.8,2711.1,2711.0,3.94535]
[1739522131414,40.8,2711.1,2711.0,3.2078]
[1739522131602,40.8,2711.1,2711.0,3.94535]
[1739522132813,40.8,2711.1,2711.0,3.2078]
[1739522133014,41.53752,2711.1,2711.0,3.2078]
[1739522134512,40.8,2711.1,2710.9,0.00553679]
[1739522134720,4.39375,2711.0,2710.9,0.00553679]
[1739522134919,3.6562,2711.0,2710.9,0.00553679]
[1739522135213,44.4562,2711.0,2710.9,0.74310679]
[1739522135614,44.0078,2711.0,2710.9,0.74310679]
[1739522135917,40.8,2711.0,2710.9,0.74310679]
[1739522136112,41.53755,2711.0,2710.9,0.00553679]
[1739522137014,41.53755,2711.0,2710.9,0.74310679]
[1739522137015,40.8,2711.0,2710.9,0.74310679]
[1739522137318,40.8,2711.0,2710.9,3.55984253]
[1739522137823,40.8,2711.0,2710.9,4.28294253]
[1739522139811,40.8,2711.0,2710.9,0.00553679]
[1739522140011,41.53755,2711.0,2710.9,0.00553679]
[1739522140710,40.8,2711.0,2710.9,0.00553679]
[1739522141017,40.8,2711.0,2710.9,0.74310679]
[1739522142119,40.8,2711.0,2710.9,0.00553679]
[1739522142120,41.53755,2711.0,2710.9,0.00553679]
[1739522142820,41.98605,2711.0,2710.9,0.00553679]
[1739522146820,41.53755,2711.0,2710.9,0.00553679]
[1739522147123,40.8,2711.0,2710.9,0.74310679]
[1739522147316,41.53755,2711.0,2710.9,0.00553679]
[1739522147518,40.8,2711.0,2710.9,0.74310679]
[1739522147717,41.53755,2711.0,2710.9,0.00553679]
[1739522148721,41.53755,2711.0,2710.9,0.74310679]
[1739522149123,41.53755,2711.0,2710.9,0.00553679]
[1739522150724,40.8,2711.0,2710.9,0.00553679]
[1739522151028,40.8,2711.0,2710.9,0.74310679]
[1739522152319,41.53755,2711.0,2710.9,0.00553679]
[1739522152819,40.8,2711.0,2710.9,0.00553679]
[1739522153023,40.8,2711.0,2710.9,0.74310679]
[1739522153820,40.8,2711.0,2710.9,2.08270679]
[1739522154821,40.8,2711.0,2710.9,0.00553679]
[1739522155022,41.53755,2711.0,2710.9,0.00553679]
[1739522155223,40.8,2711.0,2710.9,0.00553679]
[1739522155527,40.8,2711.0,2710.9,0.74310679]
[1739522156330,40.8,2711.0,2710.9,0.00553679]
[1739522156531,41.53755,2711.0,2710.9,0.00553679]
[1739522161729,1.84403,2710.8,2710.2,0.6675]
[1739522161934,3.6204,2710.7,2710.2,0.6675]
[1739522162130,0.73771,2710.5,2710.2,1.40525]
[1739522162355,0.6924,2710.4,2710.2,1.40525]
[1739522162668,40.8,2710.3,2710.2,1.40525]
[1739522163336,41.53774,2710.3,2710.2,0.6675]
[1739522163536,0.73779,2710.1,2710.0,1.37753679]
[1739522164434,41.53779,2710.1,2710.0,1.37753679]
[1739522164640,40.8,2710.1,2710.0,1.37753679]
[1739522164938,40.8,2710.1,2710.0,5.32315679]
[1739522167535,3.2078,2711.6,2710.0,24.85213378]
[1739522167835,0.7189,2711.8,2711.4,0.73744]
[1739522168035,3.94512,2711.9,2711.4,2.13024]
[1739522168234,0.8527,2712.4,2711.4,2.13024]
[1739522168235,3.2078,2712.6,2711.4,15.13262614]
[1739522168434,3.2078,2712.6,2712.1,2.24842614]
[1739522168740,3.94492,2712.6,2712.1,6.19345614]
[1739522169034,40.8,2712.2,2712.1,5.45622614]
[1739522169632,40.8,2712.2,2712.1,3.2078]
[1739522169936,40.8,2712.2,2712.1,3.94505]
[1739522171033,40.8,2712.2,2712.1,3.2078]
[1739522172329,40.8,2712.2,2712.1,3.94505]
[1739522172534,40.8,2712.2,2712.1,3.2078]
[1739522173540,40.8,2712.2,2712.1,3.94505]
[1739522173930,40.8,2712.2,2712.1,3.2078]
[1739522175444,40.8,2712.2,2712.1,3.94505]
[1739522176439,40.8,2712.2,2712.1,3.2078]
[1739522176640,40.8,2712.2,2712.1,3.94505]
[1739522180737,40.8,2712.2,2712.1,3.2078]
[1739522180943,41.53722,2712.2,2712.1,3.2078]
[1739522181534,40.8,2712.2,2712.1,3.2078]
[1739522181740,40.8,2712.2,2712.1,3.94505]
[1739522184639,40.8,2712.2,2712.1,5.35165]
[1739522185239,40.8,2712.2,2712.1,13.12165]
[1739522186950,40.8,2712.2,2712.1,10.9778]
[1739522187146,40.8,2712.2,2712.1,13.08315]
[1739522188440,40.8,2712.2,2712.1,10.9778]
[1739522188645,41.53722,2712.2,2712.1,10.9778]
[1739522189043,41.53722,2712.2,2712.1,7.77]
[1739522189645,0.73727,2712.0,2711.9,0.00553679]
[1739522190250,41.53727,2712.0,2711.9,0.00553679]
[1739522191049,40.8,2712.0,2711.9,0.00553679]
[1739522191454,41.53727,2712.0,2711.9,0.00553679]
[1739522191646,40.8,2712.0,2711.9,0.00553679]
[1739522191850,40.8,2712.0,2711.9,0.74283679]
[1739522192155,40.8,2712.0,2711.9,0.00553679]
[1739522192651,41.53727,2712.0,2711.9,0.00553679]
[1739522193256,40.8,2712.0,2711.9,0.00553679]
[1739522193449,40.8,2712.0,2711.9,0.74283679]
[1739522194354,40.8,2712.0,2711.9,2.98970209]
[1739522195354,40.8,2712.0,2711.9,3.62350209]
[1739522197255,40.8,2712.0,2711.9,0.74283679]
[1739522198353,40.8,2712.0,2711.9,2.98970209]
[1739522198556,40.8,2712.0,2711.9,4.77927427]
[1739522198750,0.00553679,2712.4,2711.9,4.04197427]
[1739522198951,0.00553679,2712.4,2712.3,0.73719]
[1739522199763,40.80553679,2712.4,2712.3,0.73719]
[1739522200459,40.80553679,2712.4,2712.2,2.2468653]
[1739522200760,40.80553679,2712.4,2712.1,3.2078]
[1739522200955,0.7372,2712.3,2712.1,3.2078]
[1739522201149,40.80553679,2712.4,2712.1,3.2078]
[1739522201349,41.54271679,2712.4,2712.2,0.73721]
[1739522201763,0.7372,2712.3,2712.1,3.94503]
[1739522201967,0.74271679,2712.4,2712.2,0.7372]
[1739522202157,0.00553679,2712.4,2712.3,0.73719]
[1739522202359,40.80553679,2712.4,2712.3,0.73719]
[1739522203056,0.7372,2712.3,2712.1,3.2078]
[1739522203369,41.54271679,2712.4,2712.2,0.7372]
[1739522203563,41.54271679,2712.4,2712.3,0.73719]
[1739522203859,40.80553679,2712.4,2712.3,0.73719]
[1739522205668,40.80553679,2712.4,2712.3,1.38839]
[1739522206063,40.80553679,2712.4,2712.3,4.32439]
[1739522214664,42.18570679,2712.4,2712.3,2.936]
[1739522217376,1.84299,2712.3,2711.1,3.2078]
[1739522217573,3.2078,2712.0,2711.2,0.55921164]
[1739522217879,0.73745,2711.4,2711.1,3.2078]
[1739522218069,0.73747,2711.3,2711.1,3.2078]
[1739522218377,40.8,2711.2,2711.1,3.94532]
[1739522218588,40.8,2711.2,2711.1,4.50436628]
[1739522218770,40.8,2711.2,2711.1,3.94532]
[1739522219674,40.8,2711.2,2711.1,3.2078]
[1739522219875,40.8,2711.2,2711.1,3.94532]
[1739522221674,40.8,2711.2,2711.1,3.2078]
[1739522222174,40.8,2711.2,2711.1,3.94532]
[1739522222574,41.53749,2711.2,2711.1,3.2078]
[1739522223176,40.8,2711.2,2711.1,3.94532]
[1739522223579,41.53749,2711.2,2711.1,3.2078]
[1739522223976,40.8,2711.2,2711.1,3.2078]
[1739522224181,40.8,2711.2,2711.1,3.94532]
[1739522224576,40.8,2711.2,2711.1,3.2078]
[1739522224771,40.8,2711.2,2711.1,3.94532]
[1739522225489,40.8,2711.2,2711.1,4.61272]
[1739522225681,40.8,2711.2,2711.1,5.17054781]
[1739522225996,0.73729,2712.0,2711.8,0.73731]
[1739522226178,0.73729,2712.0,2711.8,2.9841753]
[1739522226682,0.7373,2711.9,2711.8,2.2468653]
[1739522226984,41.5373,2711.9,2711.8,2.2468653]
[1739522227177,40.8,2711.9,2711.8,2.2468653]
[1739522227373,40.8,2711.9,2711.8,2.9841953]
[1739522228581,40.8,2711.9,2711.8,3.6579953]
[1739522229977,40.8,2711.9,2711.8,4.21552484]
[1739522230188,40.8,2711.9,2711.8,3.6579953]
[1739522231088,40.8,2711.9,2711.8,4.21562523]
[1739522231685,40.8,2711.9,2711.8,3.6579953]
[1739522233595,40.8,2711.9,2711.8,4.21570626]
[1739522234587,40.8,2711.9,2711.8,3.6579953]
[1739522235593,40.8,2711.9,2711.8,9.3998953]
[1739522236295,40.8,2711.9,2711.8,5.5798953]
[1739522236492,0.00553679,2712.4,2712.3,0.73719]
[1739522236796,3.2078,2713.2,2712.4,1.84292]
[1739522236989,3.2078,2713.2,2712.8,2.2468653]
[1739522237190,0.73702,2713.0,2712.8,2.9839053]
[1739522237394,40.8,2712.9,2712.8,2.9839053]
[1739522237591,40.8,2712.9,2712.8,2.2468653]
[1739522237592,41.53703,2712.9,2712.8,2.2468653]
[1739522238095,40.8,2712.9,2712.8,2.9839253]
[1739522238489,41.53703,2712.9,2712.8,2.2468653]
[1739522238991,40.8,2712.9,2712.8,2.9839253]
[1739522239696,40.8,2712.9,2712.8,2.2468653]
[1739522240198,40.8,2712.9,2712.8,2.9839253]
[1739522240392,40.8,2712.9,2712.8,2.2468653]
[1739522240595,40.8,2712.9,2712.7,0.73707]
[1739522240795,41.53703,2712.9,2712.7,0.73707]
[1739522240998,40.8,2712.9,2712.6,0.00553679]
[1739522241194,40.8,2712.9,2712.8,0.73706]
[1739522241396,40.8,2712.9,2712.7,0.73707]
[1739522241894,41.53703,2712.9,2712.7,0.73707]
[1739522242096,40.8,2712.9,2712.7,0.73707]
[1739522242496,0.00553679,2713.1,2712.7,0.73707]
[1739522242697,0.73703,2712.9,2712.7,0.73707]
[1739522242898,0.73703,2712.9,2712.8,0.73706]
[1739522243293,0.73708,2712.8,2712.6,0.00553679]
[1739522243502,40.8,2712.7,2712.6,0.74263679]
[1739522243695,40.8,2712.7,2712.6,0.00553679]
[1739522243891,41.53708,2712.7,2712.6,0.00553679]
[1739522244097,40.8,2712.7,2712.6,0.74264679]
[1739522245999,40.8,2712.7,2712.6,0.00553679]
[1739522246200,41.53708,2712.7,2712.6,0.00553679]
[1739522247305,40.8,2712.7,2712.6,0.74264679]
[1739522247608,41.53708,2712.7,2712.6,0.00553679]
[1739522248103,40.8,2712.7,2712.6,3.21333679]
[1739522248403,40.8,2712.7,2712.6,3.95044679]
[1739522248609,40.8,2712.7,2712.6,5.20564679]
[1739522250001,40.8,2712.7,2712.6,0.00553679]
[1739522250304,41.53708,2712.7,2712.6,0.00553679]
[1739522252605,0.73724,2712.2,2711.9,3.94508]
[1739522252807,0.73721,2712.3,2712.0,0.73726]
[1739522252999,3.2078,2712.6,2711.9,3.2078]
[1739522253205,0.73718,2712.4,2712.2,0.73722]
[1739522253800,40.8,2712.3,2712.1,0.73723]
[1739522253998,40.8,2712.3,2712.0,0.00553679]
[1739522254201,40.8,2712.3,2712.2,0.73722]
[1739522255403,40.8,2712.3,2712.1,1.39254]
[1739522255803,40.8,2712.3,2712.2,0.73722]
[1739522256008,40.8,2712.3,2712.1,1.39253]
[1739522256200,40.8,2712.3,2712.1,0.6553]
[1739522256408,0.73725,2712.1,2712.0,0.00553679]
[1739522257103,41.53725,2712.1,2712.0,0.00553679]